[Event "*** Titled Tuesday Blitz"]
[Site "Chess.com"]
[Date "2020.04.14"]
[Round "8"]
[White "Lucas_Tomiello"]
[Black "davidkalashian"]
[Result "0-1"]
[WhiteElo "2360"]
[BlackElo "2512"]
[TimeControl "180+1"]
[EndTime "11:30:34 PDT"]
[Termination "davidkalashian won by resignation"]

1. e4 {[%clk 0:03:00.9]} 1... c6 {[%clk 0:02:59.6]} 2. d4 {[%clk 0:03:00.8]}
2... g6 {[%clk 0:03:00.5]} 3. Nc3 {[%clk 0:03:00.4]} 3... Bg7 {[%clk 0:02:57.3]}
4. Nf3 {[%clk 0:02:58.4]} 4... d6 {[%clk 0:02:57.5]} 5. Be2 {[%clk 0:02:57]}
5... Nf6 {[%clk 0:02:56.8]} 6. O-O {[%clk 0:02:56.3]} 6... O-O {[%clk
0:02:56.5]} 7. h3 {[%clk 0:02:55.9]} 7... Nbd7 {[%clk 0:02:56.9]} 8. Re1 {[%clk
0:02:55.4]} 8... e5 {[%clk 0:02:57.1]} 9. Bg5 {[%clk 0:02:49.8]} 9... Qc7 {[%clk
0:02:54.1]} 10. Qd2 {[%clk 0:02:48.1]} 10... Re8 {[%clk 0:02:54.2]} 11. Bf1
{[%clk 0:02:47.3]} 11... Nf8 {[%clk 0:02:50]} 12. Bh6 {[%clk 0:02:41.9]} 12...
Ne6 {[%clk 0:02:47.5]} 13. Bxg7 {[%clk 0:02:31.9]} 13... Kxg7 {[%clk 0:02:48.4]}
14. g3 {[%clk 0:02:28]} 14... b6 {[%clk 0:02:32]} 15. Rad1 {[%clk 0:02:26.5]}
15... Bb7 {[%clk 0:02:30]} 16. h4 {[%clk 0:02:15.5]} 16... a6 {[%clk 0:02:25.4]}
17. Bh3 {[%clk 0:02:13.4]} 17... Bc8 {[%clk 0:02:14.4]} 18. d5 {[%clk
0:02:00.9]} 18... cxd5 {[%clk 0:02:07.9]} 19. Nxd5 {[%clk 0:01:58.5]} 19... Nxd5
{[%clk 0:02:04.1]} 20. Qxd5 {[%clk 0:01:59.4]} 20... Nd4 {[%clk 0:01:20]} 21.
Rxd4 {[%clk 0:01:33.6]} 21... Bxh3 {[%clk 0:01:16.7]} 22. Qxd6 {[%clk
0:01:32.2]} 22... Qxc2 {[%clk 0:01:10.2]} 23. Rd2 {[%clk 0:01:19.6]} 23... Qc5
{[%clk 0:00:49.5]} 24. Qxc5 {[%clk 0:01:19.1]} 24... bxc5 {[%clk 0:00:50.4]} 25.
Rc1 {[%clk 0:01:20]} 25... Rac8 {[%clk 0:00:47.1]} 26. Rd5 {[%clk 0:01:17.2]}
26... Be6 {[%clk 0:00:42.7]} 27. Rxe5 {[%clk 0:01:12.3]} 27... Bxa2 {[%clk
0:00:37.4]} 28. Rxe8 {[%clk 0:00:54.1]} 28... Rxe8 {[%clk 0:00:38.3]} 29. Nd2
{[%clk 0:00:53.9]} 29... Rd8 {[%clk 0:00:32.3]} 30. Nf1 {[%clk 0:00:45]} 30...
c4 {[%clk 0:00:30.3]} 31. Ra1 {[%clk 0:00:42.5]} 31... Bb3 {[%clk 0:00:30.4]}
32. Ne3 {[%clk 0:00:33.8]} 32... Rd2 {[%clk 0:00:28.5]} 33. Rxa6 {[%clk
0:00:26.9]} 33... Rxb2 {[%clk 0:00:28.8]} 34. Rc6 {[%clk 0:00:27.1]} 34... Rb1+
{[%clk 0:00:28.7]} 35. Kg2 {[%clk 0:00:27.7]} 35... Rc1 {[%clk 0:00:29.2]} 36.
Nd5 {[%clk 0:00:28.4]} 36... Re1 {[%clk 0:00:26.8]} 37. Ne3 {[%clk 0:00:27.2]}
37... Rc1 {[%clk 0:00:26]} 38. Nd5 {[%clk 0:00:27.5]} 38... h5 {[%clk
0:00:25.5]} 39. Rc7 {[%clk 0:00:27.3]} 39... Re1 {[%clk 0:00:21.7]} 40. Ne3
{[%clk 0:00:26.9]} 40... Rc1 {[%clk 0:00:22.1]} 41. Nd5 {[%clk 0:00:25.6]} 41...
Rd1 {[%clk 0:00:22.5]} 42. Ne3 {[%clk 0:00:24.5]} 42... Rd4 {[%clk 0:00:22.1]}
43. e5 {[%clk 0:00:22.5]} 43... Re4 {[%clk 0:00:20.5]} 44. e6 {[%clk 0:00:21.1]}
44... Rxe6 {[%clk 0:00:19.7]} 45. Nxc4 {[%clk 0:00:21.6]} 45... Re2 {[%clk
0:00:19.5]} 46. Ne3 {[%clk 0:00:21.2]} 46... Ba4 {[%clk 0:00:18.5]} 47. Re7
{[%clk 0:00:20.1]} 47... Ra2 {[%clk 0:00:18.8]} 48. Re5 {[%clk 0:00:19.4]} 48...
Bc6+ {[%clk 0:00:19.1]} 49. Kg1 {[%clk 0:00:19]} 49... Ra1+ {[%clk 0:00:19.4]}
50. Nf1 {[%clk 0:00:19.4]} 50... Bb7 {[%clk 0:00:18.6]} 51. f3 {[%clk
0:00:09.9]} 51... Ba6 {[%clk 0:00:18.1]} 52. Kf2 {[%clk 0:00:08.1]} 52... Rxf1+
{[%clk 0:00:18.5]} 53. Ke3 {[%clk 0:00:09]} 53... Re1+ {[%clk 0:00:18.5]} 54.
Kf4 {[%clk 0:00:09.9]} 54... Rxe5 {[%clk 0:00:18.9]} 55. Kxe5 {[%clk 0:00:10.8]}
55... Bb7 {[%clk 0:00:19.5]} 0-1

[Event "*** Titled Tuesday Blitz"]
[Site "Chess.com"]
[Date "2020.04.14"]
[Round "8"]
[White "viktorskliarov"]
[Black "Alexander_Zubov"]
[Result "1/2-1/2"]
[WhiteElo "2658"]
[BlackElo "2866"]
[TimeControl "180+1"]
[EndTime "11:30:35 PDT"]
[Termination "Game drawn by agreement"]

1. e4 {[%clk 0:03:00.9]} 1... c5 {[%clk 0:02:56.5]} 2. Nf3 {[%clk 0:03:00.6]}
2... d6 {[%clk 0:02:56.1]} 3. d4 {[%clk 0:03:00.3]} 3... cxd4 {[%clk 0:02:57]}
4. Qxd4 {[%clk 0:03:00.8]} 4... a6 {[%clk 0:02:55.3]} 5. Be3 {[%clk 0:02:57.8]}
5... e5 {[%clk 0:02:40.4]} 6. Qd2 {[%clk 0:02:55.4]} 6... Nf6 {[%clk 0:02:38.7]}
7. Nc3 {[%clk 0:02:55.6]} 7... Be7 {[%clk 0:02:37.2]} 8. O-O-O {[%clk 0:02:55]}
8... Nbd7 {[%clk 0:02:35.6]} 9. h3 {[%clk 0:02:53.7]} 9... b5 {[%clk 0:02:35.2]}
10. a3 {[%clk 0:02:51.7]} 10... Bb7 {[%clk 0:02:34.1]} 11. Bd3 {[%clk
0:02:50.7]} 11... Rc8 {[%clk 0:02:26.2]} 12. Kb1 {[%clk 0:02:47.9]} 12... O-O
{[%clk 0:02:20.3]} 13. g4 {[%clk 0:02:42.7]} 13... Rxc3 {[%clk 0:01:59.4]} 14.
Qxc3 {[%clk 0:02:40]} 14... Nxe4 {[%clk 0:01:58.9]} 15. Qe1 {[%clk 0:01:48.6]}
15... Nc3+ {[%clk 0:01:40.5]} 16. Qxc3 {[%clk 0:01:38.3]} 16... Bxf3 {[%clk
0:01:41.4]} 17. Bf5 {[%clk 0:01:31.4]} 17... Bxh1 {[%clk 0:01:37.8]} 18. Rxh1
{[%clk 0:01:31.1]} 18... Nf6 {[%clk 0:01:30]} 19. Rd1 {[%clk 0:01:15.7]} 19...
g6 {[%clk 0:01:18.7]} 20. Bd3 {[%clk 0:01:11.2]} 20... Nd5 {[%clk 0:01:17.6]}
21. Qb3 {[%clk 0:01:11.2]} 21... Nxe3 {[%clk 0:01:16.9]} 22. fxe3 {[%clk
0:01:12.1]} 22... Qb6 {[%clk 0:00:49.8]} 23. Bc4 {[%clk 0:01:00.9]} 23... Kg7
{[%clk 0:00:45.6]} 24. Rf1 {[%clk 0:00:58.8]} 24... f6 {[%clk 0:00:29.3]} 25.
Bd5 {[%clk 0:00:57]} 25... Qc5 {[%clk 0:00:29.1]} 26. e4 {[%clk 0:00:53.6]}
26... a5 {[%clk 0:00:26.9]} 27. Qd3 {[%clk 0:00:48.4]} 27... Rb8 {[%clk
0:00:20.6]} 28. h4 {[%clk 0:00:39.8]} 28... Rf8 {[%clk 0:00:15]} 29. h5 {[%clk
0:00:39.5]} 29... b4 {[%clk 0:00:12.4]} 30. a4 {[%clk 0:00:39.2]} 30... Qc8
{[%clk 0:00:12.1]} 31. Qh3 {[%clk 0:00:34.8]} 31... f5 {[%clk 0:00:09.8]} 32.
h6+ {[%clk 0:00:28.8]} 32... Kh8 {[%clk 0:00:09.2]} 33. gxf5 {[%clk 0:00:29.1]}
33... gxf5 {[%clk 0:00:10.1]} 34. exf5 {[%clk 0:00:29.4]} 34... Bg5 {[%clk
0:00:11]} 35. Qd3 {[%clk 0:00:25.9]} 35... Qd8 {[%clk 0:00:10.4]} 36. Be6 {[%clk
0:00:24.7]} 36... Bxh6 {[%clk 0:00:09.2]} 37. Rh1 {[%clk 0:00:24.4]} 37... Rf6
{[%clk 0:00:09.2]} 38. Qg3 {[%clk 0:00:20]} 38... d5 {[%clk 0:00:08.2]} 39. Qxe5
{[%clk 0:00:19.4]} 39... Bg7 {[%clk 0:00:08]} 40. Qh2 {[%clk 0:00:14.7]} 40...
Rh6 {[%clk 0:00:08]} 41. Qg2 {[%clk 0:00:14.5]} 41... Qf6 {[%clk 0:00:07.8]} 42.
c3 {[%clk 0:00:10.7]} 42... Rxh1+ {[%clk 0:00:07.7]} 43. Qxh1 {[%clk 0:00:10.6]}
43... bxc3 {[%clk 0:00:08.6]} 44. Qc1 {[%clk 0:00:09.8]} 44... cxb2 {[%clk
0:00:05.8]} 45. Qc8+ {[%clk 0:00:09.6]} 45... Bf8 {[%clk 0:00:06.4]} 46. Bxd5
{[%clk 0:00:09.8]} 46... h5 {[%clk 0:00:05.9]} 47. Qe6 {[%clk 0:00:09.9]} 47...
Qxe6 {[%clk 0:00:05.6]} 48. Bxe6 {[%clk 0:00:09.9]} 48... Bg7 {[%clk 0:00:06.5]}
49. Bd5 {[%clk 0:00:08.6]} 49... Bf8 {[%clk 0:00:07.4]} 50. Bf3 {[%clk
0:00:08.6]} 50... Bg7 {[%clk 0:00:08.3]} 51. Bxh5 {[%clk 0:00:07.8]} 51... Bf6
{[%clk 0:00:09.2]} 52. Be2 {[%clk 0:00:08.2]} 52... Kg7 {[%clk 0:00:10.1]} 53.
Bd3 {[%clk 0:00:08.3]} 53... Kh6 {[%clk 0:00:11]} 54. Bc4 {[%clk 0:00:08.5]}
54... Kg5 {[%clk 0:00:11.1]} 55. Be6 {[%clk 0:00:09.4]} 1/2-1/2

[Event "*** Titled Tuesday Blitz"]
[Site "Chess.com"]
[Date "2020.04.14"]
[Round "8"]
[White "karinachess1"]
[Black "ItalianMachine"]
[Result "1-0"]
[WhiteElo "2493"]
[BlackElo "2299"]
[TimeControl "180+1"]
[EndTime "11:30:39 PDT"]
[Termination "karinachess1 won by resignation"]

1. Nf3 {[%clk 0:03:00.9]} 1... Nf6 {[%clk 0:00:58.1]} 2. g3 {[%clk 0:02:58.7]}
2... g6 {[%clk 0:00:58.4]} 3. Bg2 {[%clk 0:02:57.4]} 3... Bg7 {[%clk 0:00:59.3]}
4. O-O {[%clk 0:02:57.6]} 4... O-O {[%clk 0:01:00.2]} 5. d4 {[%clk 0:02:57.6]}
5... d6 {[%clk 0:01:01.1]} 6. b3 {[%clk 0:02:57.5]} 6... Nc6 {[%clk 0:01:01.6]}
7. Bb2 {[%clk 0:02:57]} 7... e5 {[%clk 0:01:02.2]} 8. dxe5 {[%clk 0:02:56.6]}
8... Ng4 {[%clk 0:01:02.8]} 9. Qc1 {[%clk 0:02:56.1]} 9... Ngxe5 {[%clk
0:01:02.9]} 10. c4 {[%clk 0:02:55.7]} 10... Nxf3+ {[%clk 0:01:02.3]} 11. Bxf3
{[%clk 0:02:48.3]} 11... Bxb2 {[%clk 0:01:03.2]} 12. Qxb2 {[%clk 0:02:47.7]}
12... Ne5 {[%clk 0:01:04.1]} 13. Bg2 {[%clk 0:02:24.2]} 13... Qf6 {[%clk
0:01:04.2]} 14. Nc3 {[%clk 0:02:23.3]} 14... c6 {[%clk 0:01:04.4]} 15. Rad1
{[%clk 0:02:19.3]} 15... Qe7 {[%clk 0:01:02.3]} 16. Ne4 {[%clk 0:02:09.9]} 16...
Rd8 {[%clk 0:00:56.4]} 17. Qd4 {[%clk 0:01:42.3]} 17... d5 {[%clk 0:00:56.3]}
18. Nc3 {[%clk 0:01:30.4]} 18... c5 {[%clk 0:00:46.9]} 19. Nxd5 {[%clk
0:01:28.6]} 19... cxd4 {[%clk 0:00:45.4]} 20. Nxe7+ {[%clk 0:01:29.2]} 20... Kg7
{[%clk 0:00:42.2]} 21. Nd5 {[%clk 0:01:30.1]} 21... d3 {[%clk 0:00:37.2]} 22.
exd3 {[%clk 0:01:27.4]} 22... Bg4 {[%clk 0:00:37.4]} 23. f3 {[%clk 0:01:26]}
23... Bf5 {[%clk 0:00:37.6]} 24. d4 {[%clk 0:01:25.1]} 24... Nc6 {[%clk
0:00:37.5]} 25. Rfe1 {[%clk 0:01:20.9]} 25... Rac8 {[%clk 0:00:32.6]} 26. f4
{[%clk 0:01:17.9]} 26... Be6 {[%clk 0:00:31.5]} 27. h3 {[%clk 0:01:13.5]} 27...
b6 {[%clk 0:00:25.7]} 28. g4 {[%clk 0:01:12.7]} 28... Bxd5 {[%clk 0:00:24.5]}
29. Bxd5 {[%clk 0:01:13.6]} 29... Nb4 {[%clk 0:00:24.7]} 30. Be4 {[%clk
0:01:02.3]} 30... Nxa2 {[%clk 0:00:24.6]} 31. d5 {[%clk 0:00:54.4]} 31... Nc3
{[%clk 0:00:24.3]} 32. Rd3 {[%clk 0:00:54.4]} 32... Nxe4 {[%clk 0:00:22]} 33.
Rxe4 {[%clk 0:00:55.3]} 33... Rd7 {[%clk 0:00:19.4]} 34. g5 {[%clk 0:00:51.3]}
34... Kf8 {[%clk 0:00:19.5]} 35. Kf2 {[%clk 0:00:50.3]} 35... Rc5 {[%clk
0:00:19.4]} 36. b4 {[%clk 0:00:37.1]} 36... Rc8 {[%clk 0:00:19.2]} 37. Ke3
{[%clk 0:00:32.4]} 37... Rdc7 {[%clk 0:00:16.7]} 38. d6 {[%clk 0:00:30.6]} 38...
Rd7 {[%clk 0:00:16.1]} 39. Rd5 {[%clk 0:00:30.3]} 39... Rc6 {[%clk 0:00:15.5]}
40. c5 {[%clk 0:00:29]} 40... a5 {[%clk 0:00:12.4]} 41. bxa5 {[%clk 0:00:25.5]}
41... bxc5 {[%clk 0:00:11.3]} 42. Ra4 {[%clk 0:00:20.5]} 42... Rcxd6 {[%clk
0:00:08.3]} 43. Rxd6 {[%clk 0:00:21.2]} 43... Rxd6 {[%clk 0:00:08.8]} 44. a6
{[%clk 0:00:22.1]} 44... Rd8 {[%clk 0:00:09.7]} 45. a7 {[%clk 0:00:21.5]} 45...
Ra8 {[%clk 0:00:08.8]} 46. Ke4 {[%clk 0:00:20.5]} 46... Ke7 {[%clk 0:00:08.9]}
47. Kd5 {[%clk 0:00:20.1]} 47... Kd7 {[%clk 0:00:09.3]} 48. Kxc5 {[%clk
0:00:20.3]} 48... Kc7 {[%clk 0:00:10.2]} 49. Kd5 {[%clk 0:00:19.9]} 49... Kd7
{[%clk 0:00:09.4]} 50. Ke5 {[%clk 0:00:19.7]} 50... Ke7 {[%clk 0:00:09.6]} 51.
h4 {[%clk 0:00:18.3]} 51... Ke8 {[%clk 0:00:02.8]} 52. Kf6 {[%clk 0:00:16.1]}
52... Kf8 {[%clk 0:00:03.1]} 53. Rb4 {[%clk 0:00:14.1]} 1-0

[Event "*** Titled Tuesday Blitz"]
[Site "Chess.com"]
[Date "2020.04.14"]
[Round "8"]
[White "MikeSailer"]
[Black "willc-h99"]
[Result "1-0"]
[WhiteElo "2130"]
[BlackElo "2280"]
[TimeControl "180+1"]
[EndTime "11:30:39 PDT"]
[Termination "MikeSailer won by checkmate"]

1. d4 {[%clk 0:03:00.9]} 1... Nf6 {[%clk 0:02:57.9]} 2. Bf4 {[%clk 0:02:59.6]}
2... e6 {[%clk 0:02:57.9]} 3. e3 {[%clk 0:02:59.9]} 3... b6 {[%clk 0:02:57.7]}
4. Nf3 {[%clk 0:02:59.3]} 4... Bb7 {[%clk 0:02:57.6]} 5. Be2 {[%clk 0:02:58.7]}
5... Be7 {[%clk 0:02:57.6]} 6. O-O {[%clk 0:02:59.2]} 6... Nh5 {[%clk
0:02:55.3]} 7. Bg3 {[%clk 0:02:51.9]} 7... d6 {[%clk 0:02:51.5]} 8. c4 {[%clk
0:02:51.6]} 8... Nd7 {[%clk 0:02:48.1]} 9. Nc3 {[%clk 0:02:51.6]} 9... f5 {[%clk
0:02:43.2]} 10. a3 {[%clk 0:02:44.2]} 10... Nxg3 {[%clk 0:02:36.7]} 11. hxg3
{[%clk 0:02:43.3]} 11... g5 {[%clk 0:02:29.9]} 12. Nd2 {[%clk 0:02:28.6]} 12...
g4 {[%clk 0:02:23.8]} 13. e4 {[%clk 0:02:28.7]} 13... O-O {[%clk 0:02:13.8]} 14.
exf5 {[%clk 0:02:06]} 14... exf5 {[%clk 0:02:13.5]} 15. b4 {[%clk 0:01:51.5]}
15... Rf6 {[%clk 0:02:02.4]} 16. Bd3 {[%clk 0:01:45.4]} 16... Qe8 {[%clk
0:01:59.6]} 17. Re1 {[%clk 0:01:42.3]} 17... Rh6 {[%clk 0:01:48.1]} 18. Bxf5
{[%clk 0:01:12.3]} 18... Qh5 {[%clk 0:01:44.8]} 19. Qxg4+ {[%clk 0:01:11.2]}
19... Qxg4 {[%clk 0:01:19.8]} 20. Bxg4 {[%clk 0:01:09.6]} 20... Bg5 {[%clk
0:01:09.7]} 21. Nde4 {[%clk 0:01:04.6]} 21... Nf6 {[%clk 0:01:08.9]} 22. Be6+
{[%clk 0:01:00.2]} 22... Kg7 {[%clk 0:01:07.3]} 23. Nxg5 {[%clk 0:00:59.9]}
23... Rf8 {[%clk 0:01:03.7]} 24. Bh3 {[%clk 0:00:52.3]} 24... Kh8 {[%clk
0:01:00.8]} 25. Re7 {[%clk 0:00:51]} 25... Rg6 {[%clk 0:00:58.6]} 26. Ne6 {[%clk
0:00:47.2]} 26... Rfg8 {[%clk 0:00:55.1]} 27. Rxc7 {[%clk 0:00:46.2]} 27... Bc8
{[%clk 0:00:53.2]} 28. d5 {[%clk 0:00:44.5]} 28... Nh5 {[%clk 0:00:41.6]} 29.
Ne4 {[%clk 0:00:37]} 29... Ba6 {[%clk 0:00:35.6]} 30. b5 {[%clk 0:00:35.7]}
30... Bc8 {[%clk 0:00:35]} 31. a4 {[%clk 0:00:30.9]} 31... a6 {[%clk 0:00:18.4]}
32. a5 {[%clk 0:00:29.4]} 32... axb5 {[%clk 0:00:17.8]} 33. cxb5 {[%clk
0:00:27.9]} 33... bxa5 {[%clk 0:00:17.3]} 34. Rxa5 {[%clk 0:00:27.9]} 34... Bxe6
{[%clk 0:00:17.1]} 35. Bxe6 {[%clk 0:00:24.6]} 35... Rb8 {[%clk 0:00:15.6]} 36.
Raa7 {[%clk 0:00:23.1]} 36... Ng7 {[%clk 0:00:09.9]} 37. Nc3 {[%clk 0:00:14.7]}
37... Nxe6 {[%clk 0:00:02.3]} 38. dxe6 {[%clk 0:00:14]} 38... Rxe6 {[%clk
0:00:03.2]} 39. Rxh7+ {[%clk 0:00:11.3]} 39... Kg8 {[%clk 0:00:03.7]} 40. Rag7+
{[%clk 0:00:10.6]} 40... Kf8 {[%clk 0:00:04.1]} 41. Rh8+ {[%clk 0:00:08.7]}
41... Kxg7 {[%clk 0:00:05]} 42. Rxb8 {[%clk 0:00:08.6]} 42... Re1+ {[%clk
0:00:05.8]} 43. Kh2 {[%clk 0:00:08.1]} 43... Rc1 {[%clk 0:00:06.7]} 44. Nd5
{[%clk 0:00:07.8]} 44... Rc5 {[%clk 0:00:06.4]} 45. Ne3 {[%clk 0:00:07]} 45...
d5 {[%clk 0:00:06.5]} 46. Nxd5 {[%clk 0:00:04]} 46... Rxd5 {[%clk 0:00:06.6]}
47. b6 {[%clk 0:00:04.7]} 47... Rd2 {[%clk 0:00:06.8]} 48. f3 {[%clk 0:00:04.5]}
48... Rb2 {[%clk 0:00:07]} 49. g4 {[%clk 0:00:04.9]} 49... Rb1 {[%clk
0:00:06.5]} 50. Kg3 {[%clk 0:00:05.5]} 50... Kh7 {[%clk 0:00:05.6]} 51. Kf4
{[%clk 0:00:04.5]} 51... Kg7 {[%clk 0:00:06.2]} 52. g5 {[%clk 0:00:04.3]} 52...
Rb5 {[%clk 0:00:05.7]} 53. Kg4 {[%clk 0:00:04.3]} 53... Rb4+ {[%clk 0:00:05.8]}
54. f4 {[%clk 0:00:04.7]} 54... Rb2 {[%clk 0:00:06.7]} 55. g3 {[%clk 0:00:04.9]}
55... Rb1 {[%clk 0:00:06.9]} 56. f5 {[%clk 0:00:05.1]} 56... Rb4+ {[%clk
0:00:06.7]} 57. Kh5 {[%clk 0:00:05.6]} 57... Rb1 {[%clk 0:00:06.9]} 58. f6+
{[%clk 0:00:04.9]} 58... Kh7 {[%clk 0:00:07.2]} 59. g6# {[%clk 0:00:04.5]} 1-0

[Event "*** Titled Tuesday Blitz"]
[Site "Chess.com"]
[Date "2020.04.14"]
[Round "8"]
[White "theprosecution1"]
[Black "Ar4uha"]
[Result "1/2-1/2"]
[WhiteElo "2807"]
[BlackElo "2672"]
[TimeControl "180+1"]
[EndTime "11:30:40 PDT"]
[Termination "Game drawn by repetition"]

1. e4 {[%clk 0:03:00.9]} 1... e6 {[%clk 0:02:41.7]} 2. d4 {[%clk 0:03:00.4]}
2... d5 {[%clk 0:02:42.6]} 3. Nc3 {[%clk 0:03:01]} 3... Bb4 {[%clk 0:02:41.3]}
4. e5 {[%clk 0:03:01.1]} 4... c5 {[%clk 0:02:41.1]} 5. a3 {[%clk 0:03:01.2]}
5... Bxc3+ {[%clk 0:02:41.1]} 6. bxc3 {[%clk 0:03:02.1]} 6... Ne7 {[%clk
0:02:41.9]} 7. Qg4 {[%clk 0:03:00.7]} 7... O-O {[%clk 0:02:42.4]} 8. Bd3 {[%clk
0:02:59.6]} 8... Ng6 {[%clk 0:02:41]} 9. h4 {[%clk 0:02:40.9]} 9... f5 {[%clk
0:02:09]} 10. Qg3 {[%clk 0:02:30.7]} 10... Nc6 {[%clk 0:02:00.6]} 11. h5 {[%clk
0:02:29.4]} 11... Nh8 {[%clk 0:02:01.1]} 12. h6 {[%clk 0:02:10.9]} 12... g6
{[%clk 0:01:58.7]} 13. dxc5 {[%clk 0:02:11.4]} 13... Qa5 {[%clk 0:01:56.9]} 14.
Bd2 {[%clk 0:02:10.8]} 14... Nf7 {[%clk 0:01:52.5]} 15. Nf3 {[%clk 0:02:09.7]}
15... Qxc5 {[%clk 0:01:52.7]} 16. O-O {[%clk 0:01:58]} 16... Bd7 {[%clk
0:01:49.7]} 17. Rfe1 {[%clk 0:01:57.9]} 17... Rac8 {[%clk 0:01:49.3]} 18. Rab1
{[%clk 0:01:57.6]} 18... b6 {[%clk 0:01:49.2]} 19. Bxf5 {[%clk 0:01:30.1]} 19...
exf5 {[%clk 0:01:33.2]} 20. e6 {[%clk 0:01:31]} 20... Bxe6 {[%clk 0:01:31.7]}
21. Rxe6 {[%clk 0:01:31.1]} 21... Kh8 {[%clk 0:01:25.2]} 22. Ng5 {[%clk
0:01:27.6]} 22... Nxg5 {[%clk 0:00:56.6]} 23. Bxg5 {[%clk 0:01:28.5]} 23... d4
{[%clk 0:00:57.5]} 24. Rd1 {[%clk 0:01:08.3]} 24... f4 {[%clk 0:00:44]} 25. Bxf4
{[%clk 0:01:08.1]} 25... Qf5 {[%clk 0:00:44.2]} 26. Rde1 {[%clk 0:00:58.1]}
26... Qxf4 {[%clk 0:00:42.4]} 27. Qxf4 {[%clk 0:00:54.6]} 27... Rxf4 {[%clk
0:00:43.3]} 28. Rxc6 {[%clk 0:00:55.4]} 28... Rcf8 {[%clk 0:00:42.5]} 29. f3
{[%clk 0:00:51.8]} 29... dxc3 {[%clk 0:00:40.9]} 30. Re7 {[%clk 0:00:51.3]}
30... Rh4 {[%clk 0:00:40.9]} 31. Rxa7 {[%clk 0:00:45.8]} 31... Rxh6 {[%clk
0:00:41]} 32. Rxc3 {[%clk 0:00:45.9]} 32... Rh5 {[%clk 0:00:40.2]} 33. Rcc7
{[%clk 0:00:45]} 33... Rd8 {[%clk 0:00:39.2]} 34. Rab7 {[%clk 0:00:42.6]} 34...
b5 {[%clk 0:00:33.8]} 35. Kf2 {[%clk 0:00:35.8]} 35... Rg5 {[%clk 0:00:31.1]}
36. g4 {[%clk 0:00:35.3]} 36... h5 {[%clk 0:00:23.8]} 37. Rh7+ {[%clk
0:00:33.8]} 37... Kg8 {[%clk 0:00:23.5]} 38. Rbg7+ {[%clk 0:00:30.3]} 38... Kf8
{[%clk 0:00:23.7]} 39. gxh5 {[%clk 0:00:30.6]} 39... Rxh5 {[%clk 0:00:22.4]} 40.
Rxh5 {[%clk 0:00:31]} 40... gxh5 {[%clk 0:00:22.5]} 41. Rg5 {[%clk 0:00:31.9]}
41... Rc8 {[%clk 0:00:21]} 42. Rxb5 {[%clk 0:00:22.3]} 42... Rxc2+ {[%clk
0:00:21.9]} 43. Kg3 {[%clk 0:00:22.9]} 43... Ra2 {[%clk 0:00:19.8]} 44. Ra5
{[%clk 0:00:20.5]} 44... Kf7 {[%clk 0:00:19.2]} 45. a4 {[%clk 0:00:16.2]} 45...
Kg6 {[%clk 0:00:18.3]} 46. Kh4 {[%clk 0:00:15.1]} 46... Rh2+ {[%clk 0:00:17.7]}
47. Kg3 {[%clk 0:00:15.6]} 47... Ra2 {[%clk 0:00:18.6]} 48. Ra8 {[%clk
0:00:15.7]} 48... Kg5 {[%clk 0:00:18.6]} 49. Rg8+ {[%clk 0:00:13.3]} 49... Kf5
{[%clk 0:00:17.5]} 50. Rh8 {[%clk 0:00:12.1]} 50... Rxa4 {[%clk 0:00:17.2]} 51.
Rxh5+ {[%clk 0:00:12.2]} 51... Kg6 {[%clk 0:00:18.1]} 52. Rb5 {[%clk 0:00:12.4]}
52... Kf6 {[%clk 0:00:16.9]} 53. Rh5 {[%clk 0:00:11.7]} 53... Kg6 {[%clk
0:00:17.1]} 54. Rh1 {[%clk 0:00:11.2]} 54... Kg5 {[%clk 0:00:16.2]} 55. Rc1
{[%clk 0:00:11.3]} 55... Rb4 {[%clk 0:00:15.7]} 56. Rc3 {[%clk 0:00:11.3]} 56...
Ra4 {[%clk 0:00:15.7]} 57. Rc5+ {[%clk 0:00:10.9]} 57... Kg6 {[%clk 0:00:15.8]}
58. f4 {[%clk 0:00:11.3]} 58... Ra1 {[%clk 0:00:15.9]} 59. Rc6+ {[%clk
0:00:10.7]} 59... Kf5 {[%clk 0:00:16.3]} 60. Rc5+ {[%clk 0:00:11.1]} 60... Kg6
{[%clk 0:00:16.5]} 61. Kf3 {[%clk 0:00:10.7]} 61... Kf6 {[%clk 0:00:16]} 62.
Rc6+ {[%clk 0:00:10]} 62... Kf5 {[%clk 0:00:16.4]} 63. Rc5+ {[%clk 0:00:10.9]}
63... Kf6 {[%clk 0:00:17]} 64. Rc6+ {[%clk 0:00:11.3]} 64... Kf5 {[%clk
0:00:17.2]} 65. Rc5+ {[%clk 0:00:11.7]} 65... Kf6 {[%clk 0:00:17.7]} 1/2-1/2